[Event "40th Cappelle Open 2024"]
[Site "Cappelle-la-Grande"]
[Date "2024.03.02"]
[Round "1.12"]
[White "Grooten, Tommy"]
[Black "Velten, Paul"]
[Result "0-1"]
[ECO "E20"]
[WhiteElo "2071"]
[BlackElo "2475"]
[Annotator "TA"]
[PlyCount "88"]
[EventDate "2024.03.02"]
[EventType "swiss"]
[EventCountry "FRA"]
[SourceTitle "playchess.com"]
[Source "ChessBase"]
[SourceQuality "1"]
[TimeControl "40/5400+30:1800+30"]

{[%evp 9,88,-20,-14,-4,-6,0,-5,0,18,12,17,7,14,0,0,-16,-10,-13,-6,-12,-11,-35,-4,-11,0,0,16,-38,-40,-50,-77,-420,-422,-466,-455,-437,-445,-433,-475,-457,-453,-465,-485,-455,-473,-476,-468,-442,-347,-334,-340,-345,-335,-455,-449,-414,-406,-435,-410,-428,-408,-506,-510,-504,-514,-519,-509,-509,-496,-614,-620,-594,-573,-635,-637,-777,-737,-1114,-1004,-927,-675]} 1. d4 {[%emt 0:00:03]} Nf6 {[%emt 0:00:22]} 2. c4 {[%emt 0:00:06]} e6 {[%emt 0:00:57]} 3. Nc3 {[%emt 0:00:15]} Bb4 {[%emt 0:00:31]} 4. f3 {[%emt 0:00:51]} d5 {[%emt 0:04:57]} 5. e3 {[%emt 0:00:55]} c5 {[%emt 0:01:56]} 6. a3 {[%emt 0:03:01]} Ba5 {[%emt 0:01:27]} 7. dxc5 {[%emt 0:03:15]} Bxc3+ {[%emt 0:00:17]} 8. bxc3 {[%emt 0:00:08] The position is equal.} Qa5 {[%emt 0:01:11]} 9. cxd5 $1 {[%emt 0:06:12]} exd5 {[%emt 0:00:30][%cal Ob8c6]} 10. Ne2 {[%emt 0:06:47]} O-O {[%emt 0:02:05][%cal Ob8c6]} 11. Bd2 {[%emt 0:06:38][%cal Oc3c4]} Qxc5 {[%emt 0:16:32]} 12. c4 {[%emt 0:05:52]} Nc6 {[%emt 0:04:12] Prevents Bb4} (12... dxc4 $6 13. Bb4 Qc7 (13... Qxe3 14. Bxf8 Nc6 15. Qc1 $16) 14. Bxf8 Kxf8 15. Nd4 $14) 13. cxd5 {[%emt 0:04:56]} Nxd5 {[%emt 0:03:04]} 14. e4 {[%emt 0:02:56][%cal Oa1c1]} Nb6 {[%emt 0:09:35]} (14... Ne3 15. Bxe3 Qxe3 16. Qc1 $11) (14... Ne3 {keeps more tension.} 15. Qc1 Nc2+ 16. Kd1 N6d4) 15. Qc1 {[%emt 0:09:41]} Qe7 {[%emt 0:01:13]} 16. Be3 {[%emt 0:02:48]} Be6 $36 {[%emt 0:03:29][%mdl 2048] White must now prevent ...Rac8. Black has the initiative.} 17. Qc5 {[%emt 0:05:10]} Qf6 {[%emt 0:01:24]} 18. Rd1 {[%emt 0:05:27]} (18. Qc3 $11) 18... Rac8 $15 {[%emt 0:01:36] [#] Strongly threatening ...Ne5.} 19. Qg5 {[%emt 0:01:14]} Qb2 {[%emt 0:01:08] Threatens to win with ...Rfd8.} 20. Nd4 $2 {[%emt 0:05:28][%mdl 8192] Now White is beyond hope.} (20. Nf4 $17) 20... Rfd8 $19 {[%emt 0:01:52][%cal Rc6d4]} (20... Qxa3 21. Nxe6 fxe6 22. Kf2 $15) 21. Rd2 {[%emt 0:05:02]} Qa1+ {[%emt 0:00:45]} ({Weaker is} 21... Qxa3 22. Nxe6 fxe6 23. Rxd8+ Rxd8 24. Kf2 $17) 22. Kf2 {[%emt 0:00:42]} Nxd4 {[%emt 0:00:29]} (22... Rxd4 23. Bxd4 Nxd4 24. Qe5 $19) 23. Rxd4 {[%emt 0:08:00]} Rxd4 {[%emt 0:00:21]} 24. Be2 {[%emt 0:00:11]} Qb2 {[%emt 0:06:04]} ({Not} 24... Qxh1 25. Bxd4 f6 (25... Qxh2 26. Qxg7#) 26. Bxf6 $11) 25. Rb1 {[%emt 0:00:34]} Qxb1 {[%emt 0:00:36]} 26. Bxd4 {[%emt 0:00:06][%csl Gd4][%cal Rg5g7] [#]} f6 $1 {[%emt 0:00:24]} 27. Bxf6 {[%emt 0:00:07]} Rc7 {[%emt 0:00:23] And now ...Qc1 would win.} 28. Qe5 {[%emt 0:01:00]} gxf6 {[%emt 0:02:47]} 29. Qxc7 {[%emt 0:00:06]} Nd7 {[%emt 0:00:23]} 30. Qg3+ {[%emt 0:05:06]} Kh8 {[%emt 0:01:18]} 31. h4 {[%emt 0:00:22]} Qb6+ {[%emt 0:00:15]} 32. Kf1 {[%emt 0:00:15]} Qc5 {[%emt 0:00:35]} 33. a4 {[%emt 0:01:02]} Qe5 {[%emt 0:00:34]} 34. Qe1 {[%emt 0:04:38]} b6 {[%emt 0:02:55]} 35. Qb4 {[%emt 0:01:57]} Nc5 {[%emt 0:00:32] Black is clearly winning.} 36. Bb5 {[%emt 0:01:15]} Kg7 {[%emt 0:01:36]} 37. Kg1 {[%emt 0:01:05]} h5 {[%emt 0:02:04]} 38. Qd2 {[%emt 0:02:08]} Nb3 {[%emt 0:00:22]} 39. Qe3 {[%emt 0:01:29]} Qc5 {[%emt 0:01:42]} 40. Kf2 {[%emt 0:01:23]} a5 {[%emt 0:00:27]} 41. f4 {[%emt 0:32:15]} Nd4 {[%emt 0:32:36]} 42. Be8 {[%emt 0:00:00]} Bg4 {[%emt 0:00:00]} 43. e5 {[%emt 0:00:00]} Nf5 {[%emt 0:00:00][%csl LRe3,LRh4]} 44. Qxc5 {[%emt 0:00:00]} bxc5 {[%emt 0:00:00] Weighted Error Value: White=0.32/Black=0.07 (flawless) .  Loses game:     	White=1     	---        Mistake:       	White=1     	---        Inaccurate:     	White=1     	---        OK:         	White=12    	Black=17     Best:        	White=3     	Black=2      Strong:       	White=1     	---        Brilliant:      	---       	Black=1} 0-1

[Event "40th Cappelle Open 2024"]
[Site "Cappelle-la-Grande"]
[Date "2024.03.02"]
[Round "1.13"]
[White "Panjwani, Raja"]
[Black "Uhoda, Philippe"]
[Result "1-0"]
[ECO "A49"]
[WhiteElo "2468"]
[BlackElo "2058"]
[Annotator "TA"]
[PlyCount "57"]
[EventDate "2024.03.02"]
[EventType "swiss"]
[EventCountry "FRA"]
[SourceTitle "playchess.com"]
[Source "ChessBase"]
[SourceQuality "1"]
[TimeControl "40/5400+30:1800+30"]

{[%evp 11,57,8,45,38,40,41,80,48,72,69,77,69,77,74,76,74,69,62,162,64,61,62,61,56,139,141,255,256,257,261,275,266,365,358,546,519,517,391,711,435,1272,1310,1244,1235,1308,1295,1232,1228]} 1. d4 {[%emt 0:00:05]} Nf6 {[%emt 0:00:38]} 2. Nf3 {[%emt 0:00:10]} g6 {[%emt 0:00:16]} 3. g3 {[%emt 0:00:21]} Bg7 {[%emt 0:00:10]} 4. Bg2 {[%emt 0:00:07]} d6 {[%emt 0:00:14]} 5. O-O {[%emt 0:00:14]} O-O {[%emt 0:00:12]} 6. Re1 {[%emt 0:00:05]} c6 {[%emt 0:11:43]} 7. e4 {[%emt 0:00:25]} a5 {[%emt 0:02:32]} 8. a4 {[%emt 0:04:11]} Na6 {[%emt 0:01:56][%cal Oe7e5]} 9. c3 {[%emt 0:02:04] White is better.} Bd7 {[%emt 0:03:37]} 10. Nbd2 {[%emt 0:14:41][%cal Bb1d2,Bd2f3,Bf3e5,Be5c4][%mdl 32]} Qc7 {[%emt 0:02:21]} 11. e5 {[%emt 0:05:57]} dxe5 {[%emt 0:07:20]} 12. Nxe5 {[%emt 0:02:33]} Be6 {[%emt 0:00:52]} 13. Ndf3 {[%emt 0:04:26]} Rad8 {[%emt 0:08:16]} 14. Qe2 {[%emt 0:02:12]} Nd7 {[%emt 0:13:39] [#]} (14... Nd5 $14) 15. Bf4 {[%emt 0:07:59]} ({White should try} 15. Ng5 $1 $18) 15... Nxe5 $14 {[%emt 0:01:50]} 16. Nxe5 {[%emt 0:00:37]} Qc8 $1 {[%emt 0:00:44]} 17. h4 {[%emt 0:04:51] White is much more active.} Bd5 {[%emt 0:07:40] [#]} (17... Nc7 $14) 18. Bxd5 $1 $16 {[%emt 0:04:37]} Rxd5 {[%emt 0:04:05]} (18... cxd5 $16 19. Qb5 Rfe8 20. Qxa5 h6) 19. Nc4 $18 {[%emt 0:00:34][%cal Oc4b6] Threatens to win with Nb6!} Rf5 {[%emt 0:07:12]} 20. Bg5 {[%emt 0:02:49]} f6 {[%emt 0:12:09]} 21. Bd2 {[%emt 0:00:23]} Rh5 {[%emt 0:00:52]} 22. Qxe7 {[%emt 0:03:06]} g5 {[%emt 0:06:21] Black is weak on the dark squares} (22... Rd8 $142 23. Nd6 Qd7 24. Nxb7 (24. Qxd8+ Qxd8 25. Re8+ Qxe8 $18) 24... Qxe7 25. Rxe7 Rb8) 23. Qe2 {[%emt 0:01:34]} (23. Nxa5 gxh4 24. Nxb7 hxg3 25. Qe6+ (25. fxg3 Rh1+ 26. Kxh1 Qh3+ 27. Kg1 Qxg3+ 28. Kh1 Qh3+ 29. Kg1 Qg3+ 30. Kh1 Qh3+ 31. Kg1 Qg3+ $11) 25... Qxe6 26. Rxe6 gxf2+ 27. Kg2 (27. Kxf2 Rh2+ 28. Kf3 Rxd2 $11) 27... Rb8 $14) 23... g4 {[%emt 0:01:26]} 24. Qe7 {[%emt 0:04:20] Bf4 would now be deadly.} c5 $2 {[%emt 0:01:06]} (24... Qc7 25. Bf4 Qxe7 26. Rxe7 Rf7) 25. d5 {[%emt 0:04:14] White is clearly winning.} Rf7 {[%emt 0:03:27] [#]} (25... Nc7 $142 26. Nd6 (26. Nxa5 Rf7 $18) (26. Qxc5 Nxd5 27. Qxc8 Rxc8 $18) (26. Nb6 Qd8 $18) 26... Qd8) 26. Qxf7+ $3 {[%emt 0:00:25][%mdl 512]} Kxf7 {[%emt 0:00:23]} 27. Nd6+ {[%emt 0:00:07]} (27. Nxa5 $2 {loses.} c4 (27... Rxd5 $2 28. Nc4 $19) 28. b3 cxb3 $19 (28... Rxd5 $2 29. Nxc4 Rd3 30. Be3 $19)) 27... Kf8 {[%emt 0:00:41]} 28. Nxc8 {[%emt 0:00:07]} Rxd5 {[%emt 0:00:06]} 29. Bf4 {[%emt 0:00:20] Weighted Error Value: White=0.35/Black=0.43.  Mistake:       	White=1     	Black=6      Inaccurate:     	White=2     	Black=2      OK:         	White=7     	Black=4      Best:        	White=1     	Black=2      Strong:       	---       	Black=1} 1-0

[Event "40th Cappelle Open 2024"]
[Site "Cappelle-la-Grande"]
[Date "2024.03.02"]
[Round "1.14"]
[White "Adda, Olivier"]
[Black "Roshka, Yevgeniy"]
[Result "0-1"]
[ECO "A42"]
[WhiteElo "2053"]
[BlackElo "2468"]
[Annotator "TA"]
[PlyCount "82"]
[EventDate "2024.03.02"]
[EventType "swiss"]
[EventCountry "FRA"]
[SourceTitle "playchess.com"]
[Source "ChessBase"]
[SourceQuality "1"]
[TimeControl "40/5400+30:1800+30"]

{[%evp 11,82,12,51,25,29,0,0,-18,39,41,70,37,123,88,95,38,23,-27,-21,-3,51,0,0,-18,-29,-44,-51,-50,-47,-43,-47,-122,-115,-107,-118,-96,-57,-196,-175,-194,-203,-189,-227,-272,-275,-271,-278,-308,-139,-146,0,0,0,0,0,-74,0,0,235,215,223,-58,-66,-387,-373,-561,-577,-645,-783,-29985,-29986,-29988,-29989]} 1. e4 {[%emt 0:00:04]} g6 {[%emt 0:01:08]} 2. d4 {[%emt 0:00:09]} Bg7 {[%emt 0:00:04]} 3. c4 {[%emt 0:00:13]} d6 {[%emt 0:00:03]} 4. Nc3 {[%emt 0:00:13]} e5 {[%emt 0:00:03]} 5. Nf3 {[%emt 0:01:21]} Nc6 {[%emt 0:00:57]} 6. d5 {[%emt 0:00:59]} Nce7 {[%emt 0:00:04]} 7. b4 {[%emt 0:08:02]} f5 {[%emt 0:01:50]} 8. c5 {[%emt 0:00:34]} (8. Bd3 $142) 8... Nf6 $11 {[%emt 0:00:38]} 9. Bb5+ {[%emt 0:06:30] The position is equal.} Kf8 {[%emt 0:05:17]} (9... c6 $11 10. Ba4 dxc5 (10... Nxe4 11. Nxe4 fxe4 12. Ng5 $11) (10... fxe4 11. Ng5 $16)) 10. O-O $14 {[%emt 0:01:59]} h6 {[%emt 0:02:56]} 11. a4 {[%emt 0:20:42]} f4 {[%emt 0:11:22]} (11... fxe4 $14 12. Nd2 Bf5) 12. Qb3 {[%emt 0:10:35]} g5 {[%emt 0:00:42][%cal Bg6g5,Bg5g4][%mdl 32]} 13. Rd1 {[%emt 0:07:51]} (13. h3 $16) 13... Ng6 {[%emt 0:00:20]} 14. Ba3 {[%emt 0:03:12]} (14. h3 $142) 14... g4 $11 {[%emt 0:01:33]} 15. Nd2 {[%emt 0:05:02]} Nh5 {[%emt 0:07:10]} (15... f3 $11) 16. g3 {[%emt 0:03:36]} (16. Bf1 $14) 16... Nf6 {[%emt 0:02:12]} 17. Bf1 {[%emt 0:01:25]} h5 {[%emt 0:00:38]} 18. cxd6 {[%emt 0:00:44]} cxd6 {[%emt 0:00:04]} 19. Nb5 {[%emt 0:00:23][%cal Ob5d6]} Ne8 {[%emt 0:00:04]} 20. Nc4 {[%emt 0:01:03][%cal Oc4d6]} Kg8 {[%emt 0:00:04]} 21. Nbxd6 {[%emt 0:04:12]} Nxd6 $17 {[%emt 0:00:06]} 22. Nxd6 {[%emt 0:00:16]} Qxd6 {[%emt 0:00:04]} 23. b5 {[%emt 0:00:08]} Qf6 {[%emt 0:00:09]} 24. d6+ {[%emt 0:01:56]} (24. Rac1 $15) 24... Be6 $19 {[%emt 0:00:04]} 25. Bc4 {[%emt 0:00:09]} Bxc4 {[%emt 0:00:03]} 26. Qxc4+ {[%emt 0:00:45]} Kh7 {[%emt 0:00:16]} 27. d7 {[%emt 0:00:59]} Bf8 {[%emt 0:01:08] Inhibits Rd6.} 28. Qc7 {[%emt 0:04:55]} Rd8 {[%emt 0:00:06]} 29. Qxb7 {[%emt 0:00:21]} Bxa3 {[%emt 0:00:39]} (29... fxg3 $19 30. hxg3 Qf3) 30. Rxa3 $17 {[%emt 0:00:12][%cal Ba1a3,Ba3d3,Bd3d6][%mdl 32]} Rhf8 {[%emt 0:00:22]} (30... fxg3 $17 31. fxg3 Qe7) 31. Qxa7 $11 {[%emt 0:01:21]} h4 {[%emt 0:01:15]} 32. Rad3 {[%emt 0:00:27]} fxg3 {[%emt 0:01:16]} 33. fxg3 {[%emt 0:00:33]} (33. hxg3 $11 {keeps the balance.} hxg3 34. fxg3) 33... h3 {[%emt 0:01:57]} ({Black should try} 33... Qf7 $1 $17) 34. Qe3 {[%emt 0:00:41] Black must now prevent Rd6.} Rf7 $2 {[%emt 0:01:02]} (34... Qe6 $11 {and Black stays safe.}) 35. Rd6 $1 $18 {[%emt 0:00:36][%mdl 1024] White has strong compensation.} Qe7 {[%emt 0:02:42]} 36. Qb6 $2 {[%emt 0:02:06]} ({White has to play} 36. b6 $18 {aiming for b7.} Rf6 37. Rxf6 Qxf6 38. b7) 36... Nf8 $15 {[%emt 0:03:53][%cal Rd8d7] The board is on fire.} 37. Qe3 $2 {[%emt 0:01:58][%mdl 8192]} ({White should play} 37. a5 $1 $15) 37... Ne6 $1 $19 {[%emt 0:05:40]} (37... Rxd7 38. Qh6+ Kg8 39. b6 $17) 38. b6 {[%emt 0:02:52]} (38. R6d5 {keeps fighting.} Nd4 39. R1xd4 exd4 40. Rh5+ Kg8 41. Qh6) 38... Rf3 $1 {[%emt 0:00:56]} 39. Qd2 {[%emt 0:01:07] [#]} Qf7 $1 {[%emt 0:01:32] Strongly threatening ...Rf8.} 40. b7 {[%emt 0:00:53] [#]} Rf8 $1 {[%emt 0:00:31]} 41. Qe1 {[%emt 0:34:09]} Nd4 {[%emt 0:34:28] Never resign too early!   Weighted Error Value: White=0.64/Black=0.30.  Loses game:     	White=1     	Black=1      Missed win:     	White=1     	Black=1      Mistake:       	White=8     	Black=5      Inaccurate:     	White=2     	Black=1      OK:         	White=6     	Black=12     Best:        	---       	Black=6      Strong:       	White=1     	Black=3} 0-1

[Event "40th Cappelle Open 2024"]
[Site "Cappelle-la-Grande"]
[Date "2024.03.03"]
[Round "2.1"]
[White "Bournel, Antoine"]
[Black "Puranik, Abhimanyu"]
[Result "0-1"]
[ECO "E15"]
[WhiteElo "2332"]
[BlackElo "2618"]
[Annotator "TA"]
[PlyCount "48"]
[EventDate "2024.03.02"]
[EventType "swiss"]
[EventCountry "FRA"]
[SourceTitle "playchess.com"]
[Source "ChessBase"]
[SourceQuality "1"]
[TimeControl "40/5400+30:1800+30"]

{[%evp 20,48,0,4,11,4,0,-2,12,10,33,10,30,0,0,-20,7,-139,-147,-219,-218,-243,-257,-256,-247,-518,-512,-874,-825,-828,-800]} 1. d4 {[%emt 0:01:24]} Nf6 {[%emt 0:00:05]} 2. c4 {[%emt 0:00:35]} e6 {[%emt 0:00:05]} 3. Nf3 {[%emt 0:01:00]} b6 {[%emt 0:00:42]} 4. g3 {[%emt 0:01:31]} Ba6 {[%emt 0:00:52]} 5. b3 {[%emt 0:01:40]} Bb4+ {[%emt 0:00:31]} 6. Bd2 {[%emt 0:00:47]} Be7 {[%emt 0:00:06]} 7. Nc3 {[%emt 0:01:13]} d5 {[%emt 0:00:52]} 8. cxd5 {[%emt 0:01:35]} exd5 {[%emt 0:00:05]} 9. Bg2 {[%emt 0:01:08]} O-O {[%emt 0:00:37]} 10. O-O {[%emt 0:01:21]} Bb7 {[%emt 0:03:41]} 11. Qc2 {[%emt 0:13:04]} Nbd7 {[%emt 0:04:43][%cal Bb8d7,Bd7f8,Bf8e6][%mdl 32]} 12. Rad1 {[%emt 0:02:00]} Re8 {[%emt 0:02:49]} 13. Bf4 {[%emt 0:10:51]} a6 {[%emt 0:02:15] Repels Nb5. The position is equal.} 14. Ne5 {[%emt 0:03:48]} Nf8 {[%emt 0:03:58]} 15. h4 {[%emt 0:03:47]} Ne6 {[%emt 0:04:00]} 16. e3 {[%emt 0:02:26]} Rc8 {[%emt 0:18:05]} 17. Bf3 {[%emt 0:07:41]} Bd6 {[%emt 0:20:10]} 18. Kg2 {[%emt 0:11:18]} (18. Bg5 $11 {remains equal.}) 18... c5 $17 {[%emt 0:04:11]} 19. dxc5 {[%emt 0:06:29]} (19. Qd3 $17) 19... Nxc5 $19 {[%emt 0:06:07] Strongly threatening ...Nce4.} 20. Nc4 {[%emt 0:09:57]} Bxf4 {[%emt 0:00:49]} 21. exf4 {[%emt 0:01:41]} b5 {[%emt 0:03:13]} 22. Ne3 $2 {[%emt 0:04:51]} (22. Qb2 bxc4 23. bxc4) 22... d4 {[%emt 0:03:19] [#] Threatens to win with ...Bxf3+. Black is clearly winning.} 23. Ne2 {[%emt 0:05:39]} (23. Bxb7 $142 Nxb7 24. Rfe1) 23... Bxf3+ {[%emt 0:00:37]} 24. Kxf3 {[%emt 0:00:03]} Ncd7 {[%emt 0:01:39] Weighted Error Value: White=0.87/Black=0.07 (flawless) .  Mistake:       	White=4     	---        Inaccurate:     	White=1     	Black=1      OK:         	White=1     	Black=5      Best:        	White=1     	Black=2} 0-1

[Event "40th Cappelle Open 2024"]
[Site "Cappelle-la-Grande"]
[Date "2024.03.03"]
[Round "2.2"]
[White "Idani, Pouya"]
[Black "Bujisho, Benjamin"]
[Result "1/2-1/2"]
[ECO "B13"]
[WhiteElo "2609"]
[BlackElo "2339"]
[Annotator "RC"]
[PlyCount "175"]
[EventDate "2024.03.02"]
[EventType "swiss"]
[EventCountry "FRA"]
[SourceTitle "playchess.com"]
[Source "ChessBase"]
[SourceQuality "1"]
[TimeControl "40/5400+30:1800+30"]

1. e4 {[%emt 0:00:02]} c6 {[%emt 0:04:31]} 2. d4 {[%emt 0:00:20]} d5 {[%emt 0:00:40]} 3. exd5 {[%emt 0:01:36]} cxd5 {[%emt 0:00:42]} 4. Bd3 {[%emt 0:00:13]} Nc6 {[%emt 0:00:39]} 5. c3 {[%emt 0:00:10]} Nf6 {[%emt 0:01:47]} 6. Bf4 {[%emt 0:01:25]} g6 {[%emt 0:02:29]} 7. Nf3 {[%emt 0:02:03]} Bg7 {[%emt 0:05:42]} 8. Nbd2 {[%emt 0:04:55]} O-O {[%emt 0:02:12]} 9. h3 {[%emt 0:00:18]} Nd7 {[%emt 0:01:44]} 10. O-O {[%emt 0:00:27]} e5 {[%emt 0:04:58]} 11. dxe5 {[%emt 0:00:08]} Ndxe5 {[%emt 0:00:06]} 12. Nxe5 {[%emt 0:02:39]} Nxe5 {[%emt 0:00:22]} 13. Bxe5 {[%emt 0:05:52]} Bxe5 {[%emt 0:00:33]} 14. Nf3 {[%emt 0:00:05]} Bg7 {[%emt 0:03:55]} 15. Qa4 {[%emt 0:07:21]} Bd7 {[%emt 0:04:28]} 16. Bb5 {[%emt 0:02:38]} Be6 {[%emt 0:04:47]} 17. Rad1 {[%emt 0:03:34]} Qb6 {[%emt 0:04:54]} 18. Rd2 {[%emt 0:03:10]} Rad8 {[%emt 0:04:04]} 19. Rfd1 {[%emt 0:04:59]} Bh6 {[%emt 0:15:55]} 20. Re2 {[%emt 0:04:44]} Bg7 {[%emt 0:00:02]} 21. Red2 {[%emt 0:08:18]} Bh6 {[%emt 0:02:14]} 22. Rc2 {[%emt 0:01:11]} Bg7 {[%emt 0:07:01]} 23. Nd4 {[%emt 0:00:25]} Rd6 {[%emt 0:08:35]} 24. Be2 {[%emt 0:06:01]} Rc8 {[%emt 0:01:06]} 25. Qb3 {[%emt 0:07:21]} Qd8 {[%emt 0:00:17]} 26. Rcd2 {[%emt 0:01:29]} Rb6 {[%emt 0:04:48]} 27. Qc2 {[%emt 0:00:29]} Qg5 {[%emt 0:01:49]} 28. Kh1 {[%emt 0:11:56]} h5 {[%emt 0:01:04]} 29. Bf1 {[%emt 0:05:13]} Qf4 {[%emt 0:04:13]} 30. Nxe6 {[%emt 0:02:51]} Rxe6 {[%emt 0:00:19]} 31. Rxd5 {[%emt 0:00:05]} h4 {[%emt 0:01:40]} 32. Qd2 {[%emt 0:00:28]} Qxd2 {[%emt 0:00:34]} 33. R5xd2 {[%emt 0:03:05]} Rce8 {[%emt 0:01:18]} 34. Rd7 {[%emt 0:02:38]} R6e7 {[%emt 0:00:52]} 35. Kg1 {[%emt 0:00:28]} Bf6 {[%emt 0:00:20]} 36. Rxe7 {[%emt 0:01:52]} Rxe7 {[%emt 0:00:05]} 37. Bc4 {[%emt 0:00:11]} Re4 {[%emt 0:01:55]} 38. Bd3 {[%emt 0:04:32]} Re8 {[%emt 0:00:16]} 39. Kf1 {[%emt 0:00:50]} Kf8 {[%emt 0:00:32]} 40. Bc4 {[%emt 0:01:19]} Rd8 {[%emt 0:00:10]} 41. Bd5 {[%emt 0:30:10]} a5 {[%emt 0:31:32]} 42. a4 {[%emt 0:01:10]} b6 {[%emt 0:01:09]} 43. Ke2 {[%emt 0:00:10]} Be7 {[%emt 0:00:36]} 44. Rd3 {[%emt 0:01:47]} Bc5 {[%emt 0:02:58]} 45. f3 {[%emt 0:00:27]} Ke7 {[%emt 0:00:00]} 46. Kd2 {[%emt 0:00:00]} f5 {[%emt 0:00:00]} 47. Kc2 {[%emt 0:00:00]} Kf6 {[%emt 0:00:00]} 48. Kb3 {[%emt 0:00:00]} Ke5 {[%emt 0:00:00]} 49. Kc4 {[%emt 0:00:00]} g5 {[%emt 0:00:00]} 50. b4 {[%emt 0:00:00]} axb4 {[%emt 0:00:00]} 51. cxb4 {[%emt 0:00:00]} Bg1 {[%emt 0:00:00]} 52. Rd1 {[%emt 0:00:00]} Be3 {[%emt 0:00:00]} 53. Re1 {[%emt 0:00:00]} Kf4 {[%emt 0:00:00]} 54. Re2 {[%emt 0:00:00]} Bg1 {[%emt 0:00:00]} 55. Bc6 {[%emt 0:00:00]} Rd1 {[%emt 0:00:00]} 56. Kb5 {[%emt 0:00:00]} Rb1 {[%emt 0:00:00]} 57. Bd7 {[%emt 0:00:00]} Rd1 {[%emt 0:04:52]} 58. Be6 {[%emt 0:00:00]} Rd6 {[%emt 0:00:32]} 59. Bc8 {[%emt 0:00:00]} Rd5+ {[%emt 0:00:27]} 60. Kc4 {[%emt 0:00:45]} Rd4+ {[%emt 0:00:34]} 61. Kc3 {[%emt 0:00:08]} Rd8 {[%emt 0:00:08]} 62. Bb7 {[%emt 0:01:19]} Rd7 {[%emt 0:00:11]} 63. Bc6 {[%emt 0:01:09]} Rc7 {[%emt 0:00:33]} 64. b5 {[%emt 0:00:27]} Rf7 {[%emt 0:01:38]} 65. Re6 {[%emt 0:04:00]} Kg3 {[%emt 0:00:56]} 66. Rg6 {[%emt 0:00:04]} Be3 {[%emt 0:00:15]} 67. Bd5 {[%emt 0:01:12]} Re7 {[%emt 0:00:26]} 68. a5 {[%emt 0:00:37]} bxa5 {[%emt 0:04:05]} 69. b6 {[%emt 0:00:05]} Bf4 {[%emt 0:00:00]} 70. b7 {[%emt 0:02:29]} Re8 {[%emt 0:00:00]} 71. Kc4 {[%emt 0:01:42]} Kxg2 {[%emt 0:00:00]} 72. Be6 {[%emt 0:00:38]} Kxh3 {[%emt 0:00:10]} 73. Bc8 {[%emt 0:00:19]} Kg3 {[%emt 0:00:58]} 74. Rxg5+ {[%emt 0:00:07]} Kf2 {[%emt 0:00:02]} 75. Rxf5 {[%emt 0:00:10]} Bb8 {[%emt 0:00:37]} 76. Rf7 {[%emt 0:00:27]} Rh8 {[%emt 0:00:12]} 77. f4 {[%emt 0:01:02]} a4 {[%emt 0:00:59]} 78. Kb4 {[%emt 0:01:01]} h3 {[%emt 0:00:10]} 79. Bxh3 {[%emt 0:00:05]} Rxh3 {[%emt 0:00:04]} 80. Kxa4 {[%emt 0:00:26]} Rh8 {[%emt 0:00:27]} 81. f5 {[%emt 0:00:14]} Kf3 {[%emt 0:00:53]} 82. f6 {[%emt 0:00:15]} Ke4 {[%emt 0:01:07]} 83. Re7+ {[%emt 0:00:10]} Kd5 {[%emt 0:00:09]} 84. f7 {[%emt 0:00:07]} Rf8 {[%emt 0:00:07]} 85. Kb5 {[%emt 0:01:39]} Kd6 {[%emt 0:00:27]} 86. Re8 {[%emt 0:00:17]} Rxf7 {[%emt 0:00:02]} 87. Ka6 {[%emt 0:01:05]} Bc7 {[%emt 0:01:51]} 88. b8=Q {[%emt 0:00:00]} 1/2-1/2